fUST/lending_fUST_20250630
["ID","MTS","AMOUNT","RATE_DAILY","PERIOD"]
[368597229,1751223046627,-1102.64,0.00019993,2]
[368597230,1751223046636,-460.0,0.00019993,2]
[368597231,1751223046645,-460.0,0.00019993,2]
[368597232,1751223046655,-1332.91,0.00019993,2]
[368597233,1751223046664,-460.0,0.00019993,2]
[368597234,1751223046673,-906.67,0.00019993,2]
[368597235,1751223046683,-774.46,0.00019993,2]
[368597236,1751223046692,-1593.95,0.00019993,2]
[368597237,1751223046701,-460.0,0.00019993,2]
[368597238,1751223046711,-736.5,0.00019993,2]
[368597239,1751223046720,-1544.83,0.00019993,2]
[368597240,1751223046729,-4598.83,0.00019993,2]
[368597241,1751223046738,-462.19,0.00019995,2]
[368597242,1751223046747,-678.18,0.00019995,2]
[368597243,1751223046756,-538.8,0.00019995,2]
[368597244,1751223046765,-3334.0,0.00019999,2]
[368597245,1751223046774,-350.0,0.0002,5]
[368597246,1751223046784,-300.0,0.0002,2]
[368597247,1751223046793,-160.0,0.0002,3]
[368597248,1751223046803,-420.0,0.0002001,2]
[368597249,1751223046812,-716.195754,0.00020036,2]
[368597250,1751223046822,-168.0,0.00020036,2]
[368597251,1751223046831,-4545.26539542,0.00020072,2]
[368597252,1751223046840,-366.235562,0.00020082,2]
[368597253,1751223046849,-366.235562,0.00020082,2]
[368597254,1751223046858,-366.235562,0.00020082,2]
[368597255,1751223046867,-336.9475264,0.00020082,2]
[368597256,1751223046876,-366.235562,0.00020082,2]
[368597257,1751223046885,-366.235562,0.00020082,2]
[368597258,1751223046894,-666.0,0.00020091,2]
[368597259,1751223046903,-2674.25726465,0.00020095,2]
[368597260,1751223046913,-598.0,0.00020108,2]
[368597261,1751223046922,-168.0,0.00020168,2]
[368597262,1751223046932,-291.820366,0.00020187,2]
[368597263,1751223046942,-4545.26539542,0.00020245,2]
[368597264,1751223046953,-2640.81,0.00020265,2]
[368597265,1751223046962,-2698.79,0.00020265,2]
[368597266,1751223046971,-495.09,0.00020265,2]
[368597267,1751223046981,-460.0,0.00020265,2]
[368597268,1751223046991,-460.0,0.00020265,2]
[368597269,1751223047000,-3403.78,0.00020265,2]
[368597270,1751223047010,-3125.27,0.00020265,2]
[368597271,1751223047019,-3379.8,0.00020265,2]
[368597272,1751223047030,-475.17,0.00020265,2]
[368597273,1751223047040,-1904.63,0.00020265,2]
[368597274,1751223047049,-460.0,0.00020265,2]
[368597275,1751223047059,-474.4,0.00020265,2]
[368597276,1751223047067,-460.0,0.00020265,2]
[368597277,1751223047076,-460.0,0.00020265,2]
[368597278,1751223047086,-1711.81,0.00020265,2]
[368597279,1751223047095,-460.0,0.00020265,2]
[368597280,1751223047104,-1294.22,0.00020265,2]
[368597281,1751223047113,-460.0,0.00020265,2]
[368597282,1751223047122,-475.59879967,0.00020266,2]
[368597283,1751223047132,-460.0,0.00020266,2]
[368597284,1751223047141,-598.66,0.00020266,2]
[368597285,1751223047150,-591.01,0.00020266,2]
[368597286,1751223047159,-675.33,0.00020266,2]
[368597287,1751223047168,-564.0,0.00020266,2]
[368597288,1751223047178,-460.0,0.00020266,2]
[368597289,1751223047187,-998.47,0.00020266,2]
[368597290,1751223047197,-460.0,0.00020266,2]
[368597291,1751223047206,-476.42,0.00020266,2]
[368597292,1751223047216,-460.0,0.00020266,2]
[368597293,1751223047226,-3758.81,0.00020266,2]
[368597294,1751223047235,-543.37,0.00020266,2]
[368597295,1751223047244,-1316.8,0.00020266,2]
[368597296,1751223047254,-253.79801582,0.00020266,2]
[368597297,1751223047263,-665.27,0.00020266,2]
[368597298,1751223047272,-1077.02,0.00020266,2]
[368597299,1751223047282,-460.0,0.00020266,2]
[368597300,1751223047292,-460.0,0.00020266,2]
[368597301,1751223047300,-460.0,0.00020266,2]
[368597302,1751223047310,-781.12,0.00020266,2]
[368597303,1751223047319,-460.0,0.00020266,2]
[368597304,1751223047328,-460.0,0.00020266,2]
[368597305,1751223047339,-460.0,0.00020266,2]
[368597306,1751223047348,-1110.61,0.00020266,2]
[368597307,1751223047358,-554.53,0.00020266,2]
[368597308,1751223047367,-460.0,0.00020267,2]
[368597309,1751223047376,-460.0,0.00020267,2]
[368597310,1751223047386,-460.0,0.00020267,2]
[368597311,1751223047395,-501.16,0.00020267,2]
[368597312,1751223047404,-648.71,0.00020267,2]
[368597313,1751223047414,-637.61,0.00020267,2]
[368597314,1751223047423,-572.94,0.00020267,2]
[368597315,1751223047432,-460.0,0.00020267,2]
[368597316,1751223047441,-673.79,0.00020267,2]
[368597317,1751223047451,-1102.64,0.00020267,2]
[368597318,1751223047460,-460.0,0.00020267,2]
[368597319,1751223047474,-1332.91,0.00020267,2]
[368597320,1751223047484,-460.0,0.00020267,2]
[368597321,1751223047493,-906.67,0.00020267,2]
[368597322,1751223047502,-774.46,0.00020267,2]
[368597323,1751223047511,-1593.95,0.00020267,2]
[368597324,1751223047520,-460.0,0.00020267,2]
[368597325,1751223047529,-736.5,0.00020267,2]
[368597326,1751223047538,-1544.83,0.00020267,2]
[368597327,1751223047548,-4598.83,0.00020267,2]
[368597328,1751223047557,-678.18,0.00020269,2]
[368597329,1751223047567,-538.8,0.00020269,2]
[368597330,1751223047576,-151.0,0.00020314,2]
[368597331,1751223047586,-1842.54214459,0.00020374,2]
[368597332,1751223047595,-483.02463483,0.00020378,2]
[368597333,1751223047604,-1500.0,0.00020378,2]
[368597334,1751223047614,-1007.12065711,0.00020378,2]
[368597335,1751223047623,-500.0,0.000204,2]
[368597336,1751223047633,-230.65643113,0.000204,2]
[368597337,1751223047642,-1500.0,0.000204,2]
[368597338,1751223047652,-1000.0,0.000204,2]
[368597339,1751223047661,-1519.76312072,0.000204,2]
[368597340,1751223047671,-500.0,0.000204,2]
[368597341,1751223047680,-500.0,0.000204,2]
[368597342,1751223047689,-1052.75765332,0.000204,2]
[368597343,1751223047699,-4545.26539542,0.00020417,3]
[368597344,1751223047708,-160.0,0.00020419,3]
[368597345,1751223047717,-847.31290578,0.00020419,3]
[368597346,1751223047726,-160.0,0.00020419,3]
[368597347,1751223047735,-524.48349001,0.00020419,3]
[368597348,1751223047745,-213.82031328,0.00020419,3]
[368597349,1751223047755,-1070.641,0.0002043,2]
[368597350,1751223047764,-177.92820716,0.0002043,2]
[368597351,1751223047773,-500.0,0.00020431,2]
[368597352,1751223047782,-3334.0,0.00020442,2]
[368597353,1751223047792,-318.4789722,0.00020482,2]
[368597354,1751223047801,-11917.82337632,0.00020485,2]
[368597355,1751223047810,-4001.47,0.000205,2]
[368597356,1751223047821,-5000.0,0.000205,2]
[368597357,1751223047831,-151.0,0.000205,3]
[368597358,1751223047840,-151.0,0.000205,2]
[368597359,1751223047850,-151.0,0.000205,2]
[368597360,1751223047859,-151.0,0.000205,2]
[368597361,1751223047869,-1175.297616,0.000205,2]
[368597362,1751223047878,-1175.297616,0.000205,2]
[368597363,1751223047887,-13171.80174047,0.00020519,2]
[368597364,1751223047898,-182.589336,0.00020519,2]
[368597365,1751223047908,-151.0,0.00020519,2]
[368597366,1751223047918,-275.542699,0.00020519,2]
[368597367,1751223047928,-275.542699,0.00020519,2]
[368597368,1751223047939,-151.0,0.00020519,2]
[368597369,1751223047948,-151.0,0.00020519,2]
[368597370,1751223047957,-151.0,0.00020519,2]
[368597371,1751223047967,-273.081651,0.00020519,2]
[368597372,1751223047976,-273.081651,0.00020519,2]
[368597373,1751223047985,-151.0,0.00020519,2]
[368597374,1751223047994,-151.0,0.00020519,2]
[368597375,1751223048003,-151.0,0.00020519,2]
[368597376,1751223048011,-151.0,0.00020519,2]
[368597377,1751223048021,-704.664113,0.00020519,2]
[368597378,1751223048030,-704.664113,0.00020519,2]
[368597379,1751223048039,-265.107121,0.00020519,2]
[368597380,1751223048049,-320.204932,0.00020519,2]
[368597381,1751223048058,-320.204932,0.00020519,2]
[368597382,1751223048068,-151.0,0.00020519,2]
[368597383,1751223048077,-151.0,0.00020519,2]
[368597384,1751223048087,-151.0,0.00020519,2]
[368597385,1751223048096,-151.0,0.00020519,2]
[368597386,1751223048105,-151.0,0.00020519,2]
[368597387,1751223048115,-151.0,0.00020519,2]
[368597388,1751223048124,-151.0,0.00020528,2]
[368597389,1751223048134,-5000.0,0.00020529,2]
[368597390,1751223048143,-2640.81,0.00020539,2]
[368597391,1751223048153,-2698.79,0.00020539,2]
[368597392,1751223048162,-495.09,0.00020539,2]
[368597393,1751223048171,-460.0,0.00020539,2]
[368597394,1751223048181,-460.0,0.00020539,2]
[368597395,1751223048190,-3403.78,0.00020539,2]
[368597396,1751223048199,-3125.27,0.00020539,2]
[368597397,1751223048208,-3379.8,0.00020539,2]
[368597398,1751223048218,-475.17,0.00020539,2]
[368597399,1751223048227,-1904.63,0.00020539,2]
[368597400,1751223048237,-460.0,0.00020539,2]
[368597401,1751223048246,-474.4,0.00020539,2]
[368597402,1751223048256,-460.0,0.00020539,2]
[368597403,1751223048265,-460.0,0.00020539,2]
[368597404,1751223048274,-1711.81,0.00020539,2]
[368597405,1751223048284,-460.0,0.00020539,2]
[368597406,1751223048294,-1294.22,0.00020539,2]
[368597407,1751223048303,-160.0,0.00020539,2]
[368597408,1751223048311,-401.4751372,0.0002054,2]
[368597409,1751223048321,-598.66,0.0002054,2]
[368597410,1751223048331,-591.01,0.0002054,2]
[368597411,1751223048341,-675.33,0.0002054,2]
[368597412,1751223048350,-564.0,0.0002054,2]
[368597413,1751223048360,-460.0,0.0002054,2]
[368597414,1751223048370,-998.47,0.0002054,2]
[368597415,1751223048379,-460.0,0.0002054,2]
[368597416,1751223048388,-476.42,0.0002054,2]
[368597417,1751223048397,-460.0,0.0002054,2]
[368597418,1751223048407,-3758.81,0.0002054,2]
[368597419,1751223048416,-543.37,0.0002054,2]
[368597420,1751223048425,-1316.8,0.0002054,2]
[368597421,1751223048434,-665.27,0.0002054,2]
[368597422,1751223048444,-1077.02,0.0002054,2]
[368597423,1751223048453,-460.0,0.0002054,2]
[368597424,1751223048464,-513.96,0.0002054,2]
[368597425,1751223048475,-460.0,0.0002054,2]
[368597426,1751223048485,-781.12,0.0002054,2]
[368597427,1751223048494,-460.0,0.0002054,2]
[368597428,1751223048503,-460.0,0.0002054,2]
[368597429,1751223048514,-460.0,0.0002054,2]
[368597430,1751223048523,-1110.61,0.0002054,2]
[368597431,1751223048532,-554.53,0.0002054,2]
[368597432,1751223048543,-460.0,0.00020541,2]
[368597433,1751223048553,-460.0,0.00020541,2]
[368597434,1751223048561,-460.0,0.00020541,2]
[368597435,1751223048571,-501.16,0.00020541,2]
[368597436,1751223048581,-648.71,0.00020541,2]
[368597437,1751223048590,-637.61,0.00020541,2]
[368597438,1751223048599,-572.94,0.00020541,2]
[368597439,1751223048609,-460.0,0.00020541,2]
[368597440,1751223048619,-673.79,0.00020541,2]
[368597441,1751223048628,-1102.64,0.00020541,2]
[368597442,1751223048638,-460.0,0.00020541,2]
[368597443,1751223048647,-1332.91,0.00020541,2]
[368597444,1751223048657,-460.0,0.00020541,2]
[368597445,1751223048666,-906.67,0.00020541,2]
[368597446,1751223048675,-774.46,0.00020541,2]
[368597447,1751223048684,-1593.95,0.00020541,2]
[368597448,1751223048694,-460.0,0.00020541,2]
[368597449,1751223048704,-736.5,0.00020541,2]
[368597450,1751223048713,-1544.83,0.00020541,2]
[368597451,1751223048723,-4598.83,0.00020541,2]
[368597452,1751223048732,-151.0,0.00020542,2]
[368597453,1751223048741,-151.0,0.00020542,2]
[368597454,1751223048751,-151.0,0.00020542,2]
[368597455,1751223048760,-892.53543,0.00020542,2]
[368597456,1751223048770,-892.53543,0.00020542,2]
[368597457,1751223048779,-190.971803,0.00020542,2]
[368597458,1751223048788,-190.971803,0.00020542,2]
[368597459,1751223048797,-151.0,0.00020542,2]
[368597460,1751223048807,-262.65229,0.00020543,2]
[368597461,1751223048816,-678.18,0.00020543,2]
[368597462,1751223048825,-151.0,0.00020543,2]
[368597463,1751223048835,-538.8,0.00020543,2]
[368597464,1751223048844,-151.0,0.00020543,2]
[368597465,1751223048854,-151.0,0.00020543,2]
[368597466,1751223048863,-151.0,0.00020543,2]
[368597467,1751223048873,-500.0,0.00020547,14]
[368597468,1751223048882,-151.0,0.00020548,2]
[368597469,1751223048892,-306.0,0.00020551,2]
[368597470,1751223048902,-177.5384831,0.00020551,2]
[368597471,1751223048911,-159.291355,0.00020551,2]
[368597472,1751223048921,-177.5384831,0.00020551,2]
[368597473,1751223048930,-575.3123006,0.00020551,2]
[368597474,1751223048940,-177.5384831,0.00020551,2]
[368597475,1751223048949,-575.3123006,0.00020551,2]
[368597476,1751223048959,-159.291355,0.00020551,2]
[368597477,1751223048969,-159.291355,0.00020551,2]
[368597478,1751223048980,-574.7322818,0.00020551,2]
[368597479,1751223048989,-159.0838794,0.00020551,2]
[368597480,1751223048999,-198.702258,0.00020579,4]
[368597481,1751223049009,-4545.26539542,0.0002059,3]
[368597482,1751223049018,-5824.65,0.000206,2]
[368597483,1751223049027,-151.0,0.000206,3]
[368597484,1751223049037,-865.0,0.00020611,2]
[368597485,1751223049046,-633.0,0.00020661,2]
[368597486,1751223049056,-865.0,0.00020677,2]
[368597487,1751223049065,-151.0,0.000207,3]
[368597488,1751223049075,-3334.0,0.00020709,2]
[368597489,1751223049085,-966.0,0.00020711,2]
[368597490,1751223049094,-406.0,0.00020711,2]
[368597491,1751223049104,-422.825,0.00020711,2]
[368597492,1751223049114,-646.0,0.00020711,2]
[368597493,1751223049123,-2150.0,0.00020711,2]
[368597494,1751223049133,-151.0,0.0002073,2]
[368597495,1751223049142,-800.0,0.00020743,2]
[368597496,1751223049152,-800.0,0.0002075,2]
[368597497,1751223049161,-151.0,0.00020762,2]
[368597498,1751223049171,-4545.26539542,0.00020762,3]
[368597499,1751223049181,-732.117071,0.00020779,2]
[368597500,1751223049190,-800.0,0.00020797,2]
[368597501,1751223049201,-800.0,0.00020805,2]
[368597502,1751223049210,-2640.81,0.00020813,2]
[368597503,1751223049221,-2698.79,0.00020813,2]
[368597504,1751223049231,-495.09,0.00020813,2]
[368597505,1751223049241,-460.0,0.00020813,2]
[368597506,1751223049251,-460.0,0.00020813,2]
[368597507,1751223049260,-3403.78,0.00020813,2]
[368597508,1751223049269,-3125.27,0.00020813,2]
[368597509,1751223049279,-3379.8,0.00020813,2]
[368597510,1751223049288,-475.17,0.00020813,2]
[368597511,1751223049298,-1904.63,0.00020813,2]
[368597512,1751223049308,-460.0,0.00020813,2]
[368597513,1751223049318,-474.4,0.00020813,2]
[368597514,1751223049327,-460.0,0.00020813,2]
[368597515,1751223049336,-460.0,0.00020813,2]
[368597516,1751223049346,-1711.81,0.00020813,2]
[368597517,1751223049355,-460.0,0.00020813,2]
[368597518,1751223049364,-1294.22,0.00020813,2]
[368597519,1751223049374,-598.66,0.00020814,2]
[368597520,1751223049383,-591.01,0.00020814,2]
[368597521,1751223049393,-675.33,0.00020814,2]
[368597522,1751223049402,-564.0,0.00020814,2]
[368597523,1751223049411,-460.0,0.00020814,2]
[368597524,1751223049421,-998.47,0.00020814,2]
[368597525,1751223049430,-460.0,0.00020814,2]
[368597526,1751223049440,-476.42,0.00020814,2]
[368597527,1751223049450,-460.0,0.00020814,2]
[368597528,1751223049460,-3758.81,0.00020814,2]
[368597529,1751223049471,-543.37,0.00020814,2]
[368597530,1751223049481,-1316.8,0.00020814,2]
[368597531,1751223049490,-665.27,0.00020814,2]
[368597532,1751223049499,-1077.02,0.00020814,2]
[368597533,1751223049509,-460.0,0.00020814,2]
[368597534,1751223049520,-460.0,0.00020814,2]
[368597535,1751223049531,-781.12,0.00020814,2]
[368597536,1751223049540,-329.00663723,0.00020814,2]
[368597537,1751223049551,-460.0,0.00020814,2]
[368597538,1751223049561,-460.0,0.00020814,2]
[368597539,1751223049570,-1110.61,0.00020814,2]
[368597540,1751223049581,-554.53,0.00020814,2]
[368597541,1751223049590,-460.0,0.00020815,2]
[368597542,1751223049600,-460.0,0.00020815,2]
[368597543,1751223049609,-460.0,0.00020815,2]
[368597544,1751223049619,-501.16,0.00020815,2]
[368597545,1751223049628,-648.71,0.00020815,2]
[368597546,1751223049769,-637.61,0.00020815,2]
[368597547,1751223049779,-572.94,0.00020815,2]
[368597548,1751223049788,-460.0,0.00020815,2]
[368597549,1751223049797,-673.79,0.00020815,2]
[368597550,1751223049807,-1102.64,0.00020815,2]
[368597551,1751223049816,-460.0,0.00020815,2]
[368597552,1751223049825,-1332.91,0.00020815,2]
[368597553,1751223049835,-460.0,0.00020815,2]
[368597554,1751223049844,-906.67,0.00020815,2]
[368597555,1751223049853,-774.46,0.00020815,2]
[368597556,1751223049863,-1593.95,0.00020815,2]
[368597557,1751223049873,-460.0,0.00020815,2]
[368597558,1751223049883,-736.5,0.00020815,2]
[368597559,1751223049893,-1544.83,0.00020815,2]
[368597560,1751223049903,-4598.83,0.00020815,2]
[368597561,1751223049912,-151.0,0.00020817,2]
[368597562,1751223049922,-151.0,0.00020817,2]
[368597563,1751223049931,-151.0,0.00020817,2]
[368597564,1751223049941,-273.081651,0.00020817,2]
[368597565,1751223049953,-273.081651,0.00020817,2]
[368597566,1751223049963,-151.0,0.00020817,2]
[368597567,1751223049972,-151.0,0.00020817,2]
[368597568,1751223049981,-151.0,0.00020817,2]
[368597569,1751223049991,-151.0,0.00020817,2]
[368597570,1751223050000,-274.038432,0.00020817,2]
[368597571,1751223050010,-274.038432,0.00020817,2]
[368597572,1751223050019,-151.0,0.00020817,2]
[368597573,1751223050029,-151.0,0.00020817,2]
[368597574,1751223050038,-678.18,0.00020817,2]
[368597575,1751223050047,-538.8,0.00020817,2]
[368597576,1751223050057,-366.979376,0.00020817,2]
[368597577,1751223050067,-366.979376,0.00020817,2]
[368597578,1751223050077,-525.59567588,0.0002083,2]
[368597579,1751223050087,-2100.28032083,0.0002083,2]
[368597580,1751223050096,-633.0,0.00020861,2]
[368597581,1751223050106,-800.0,0.00020867,2]
[368597582,1751223050116,-151.0,0.00020873,2]
[368597583,1751223050126,-153.403596,0.00020873,2]
[368597584,1751223050136,-151.0,0.00020873,2]
[368597585,1751223050145,-1175.297616,0.00020873,2]
[368597586,1751223050155,-1175.297616,0.00020873,2]
[368597587,1751223050164,-151.0,0.000209,3]
[368597588,1751223050173,-1842.54214459,0.000209,2]
[368597589,1751223050183,-800.0,0.00020908,2]
[368597590,1751223050192,-193.96505387,0.00020925,2]
[368597591,1751223050203,-2000.0,0.00020926,2]
[368597592,1751223050212,-214.25267558,0.00020927,2]
[368597593,1751223050222,-193.96505387,0.00020929,2]
[368597594,1751223050232,-865.0,0.00020932,2]
[368597595,1751223050242,-4545.26539542,0.00020934,4]
[368597596,1751223050252,-151.0,0.00020935,2]
[368597597,1751223050262,-151.0,0.00020935,2]
[368597598,1751223050273,-704.664113,0.00020935,2]
[368597599,1751223050282,-704.664113,0.00020935,2]
[368597600,1751223050291,-151.0,0.00020935,2]
[368597601,1751223050300,-151.0,0.00020935,2]
[368597602,1751223050309,-151.0,0.00020935,2]
[368597603,1751223050318,-113.87626862,0.00020935,2]
[368597604,1751223050458,-460.0,0.00018347,2]
[368597605,1751223050470,-37.12373138,0.00020935,2]
[368597606,1751223050489,-865.0,0.00020948,2]
[368597607,1751223050498,-2000.0,0.00020948,2]
[368597608,1751223050507,-500.0,0.00020958,15]
[368597609,1751223050517,-320.204932,0.00020967,2]
[368597610,1751223050526,-320.204932,0.00020967,2]
[368597611,1751223050535,-151.0,0.00020967,2]
[368597612,1751223050545,-151.0,0.00020967,2]
[368597613,1751223050554,-200.0,0.0002097,2]
[368597614,1751223050564,-151.0,0.00020999,2]
[368597615,1751223050573,-3092.43420098,0.00020999,2]
[368597616,1751223050582,-60295.70476706,0.00020999,2]
[368597617,1751223050809,-258.86,0.00018348,2]
[368597618,1751223050820,-460.0,0.00018621,2]
[368597619,1751223050829,-188.61632761,0.00018895,2]
[368597620,1751223050846,-271.38367239,0.00018895,2]
[368597621,1751223050855,-266.94393791,0.00019169,2]
[368597622,1751223050865,-88190.95274303,0.00020999,2]
[368597623,1751223050878,-5000.0,0.00020999,2]
[368597624,1751223051007,-228.38285664,0.00018247,2]
[368597625,1751223051017,-166.52976988,0.00018349,2]
[368597626,1751223051027,-193.96505387,0.00020911,2]
[368597627,1751223051036,-226120.07013836,0.00020999,2]
[368597628,1751223051221,-460.0,0.00018348,2]
[368597629,1751223051231,-1120.85,0.00020419,3]
[368597630,1751223281616,-154.68639608,0.00018345,2]
[368597631,1751223475797,-162.6316049,0.00018247,2]
[368597632,1751223521671,-124.10857201,0.00018247,2]
[368597633,1751223601358,-160.59957841,0.00018332,2]
[368597634,1751223667094,-152.0,0.00018246,2]
[368597635,1751223672109,-98.89765477,0.00018246,2]
[368597636,1751223672130,-108.61803109,0.00018332,2]
[368597637,1751223675106,-15.22530357,0.00018332,2]
[368597638,1751223979101,277.229348,0.00013699,2]
[368597652,1751224232450,-268.18450602,0.00018246,2]
[368597653,1751224232460,-282.0,0.00018343,2]
[368597654,1751224232470,-673.0,0.00018343,2]
[368597655,1751224232480,-300.0,0.00018343,2]
[368597656,1751224232490,-460.0,0.00018344,2]
[368597657,1751224232499,-460.0,0.00018344,2]
[368597658,1751224232509,-460.0,0.00018344,2]
[368597659,1751224232518,-460.0,0.00018344,2]
[368597660,1751224232528,-3038.72,0.00018344,2]
[368597661,1751224232537,-460.0,0.00018344,2]
[368597662,1751224232547,-460.0,0.00018344,2]
[368597663,1751224232557,-460.0,0.00018344,2]
[368597664,1751224232568,-460.0,0.00018344,2]
[368597665,1751224232577,-460.0,0.00018344,2]
[368597667,1751224232587,-3793.9,0.00018344,2]
[368597669,1751224232597,-460.0,0.00018344,2]
[368597670,1751224232606,-481.9,0.00018344,2]
[368597671,1751224232616,-460.0,0.00018344,2]
[368597673,1751224232626,-552.84,0.00018344,2]
[368597674,1751224232635,-1968.03,0.00018344,2]
[368597675,1751224232645,-460.0,0.00018344,2]
[368597676,1751224232655,-460.0,0.00018344,2]
[368597677,1751224232665,-460.0,0.00018344,2]
[368597678,1751224232674,-460.0,0.00018344,2]
[368597679,1751224232684,-1424.12,0.00018344,2]
[368597680,1751224232693,-3585.22312097,0.00018344,2]
[368597681,1751224232703,-460.0,0.00018345,2]
[368597682,1751224232712,-460.0,0.00018345,2]
[368597683,1751224232722,-460.0,0.00018345,2]
[368597684,1751224232732,-460.0,0.00018345,2]
[368597685,1751224232742,-344.24059989,0.00018345,2]
[368597686,1751224232751,-460.0,0.00018345,2]
[368597687,1751224232761,-460.0,0.00018345,2]
[368597688,1751224232770,-460.0,0.00018345,2]
[368597689,1751224232781,-460.0,0.00018345,2]
[368597690,1751224232791,-460.0,0.00018345,2]
[368597691,1751224232800,-463.8458609,0.00018345,2]
[368597692,1751224232810,-460.0,0.00018345,2]
[368597693,1751224232821,-460.0,0.00018345,2]
[368597694,1751224232830,-460.0,0.00018345,2]
[368597695,1751224232839,-308.47891596,0.00018345,2]
[368597696,1751224232851,-365.25001175,0.00018345,2]
[368597697,1751224232862,-460.0,0.00018345,2]
[368597698,1751224232872,-460.0,0.00018345,2]
[368597699,1751224232882,-460.0,0.00018345,2]
[368597700,1751224232893,-316.94377066,0.00018345,2]
[368597701,1751224232903,-460.0,0.00018345,2]
[368597702,1751224232912,-460.0,0.00018345,2]
[368597703,1751224232922,-460.0,0.00018345,2]
[368597704,1751224232933,-460.0,0.00018345,2]
[368597705,1751224232943,-460.0,0.00018345,2]
[368597706,1751224232952,-460.0,0.00018345,2]
[368597707,1751224232962,-460.0,0.00018345,2]
[368597708,1751224232972,-460.0,0.00018345,2]
[368597709,1751224232982,-857.04,0.00018345,2]
[368597710,1751224232992,-460.0,0.00018345,2]
[368597711,1751224233001,-460.0,0.00018345,2]
[368597712,1751224233010,-322.54404929,0.00018345,2]
[368597713,1751224233023,-137.45595071,0.00018345,2]
[368597714,1751224233034,-409.04967742,0.00018345,2]
[368597715,1751224233049,-50.95032258,0.00018345,2]
[368597716,1751224233058,-460.0,0.00018345,2]
[368597717,1751224233068,-2854.37,0.00018345,2]
[368597718,1751224233078,-621.65,0.00018345,2]
[368597719,1751224233087,-460.0,0.00018345,2]
[368597720,1751224233097,-460.0,0.00018345,2]
[368597721,1751224233106,-631.08,0.00018345,2]
[368597722,1751224233116,-504.29,0.00018345,2]
[368597723,1751224233125,-613.49,0.00018345,2]
[368597724,1751224233134,-1052.36,0.00018345,2]
[368597725,1751224233144,-460.0,0.00018345,2]
[368597726,1751224233154,-460.0,0.00018345,2]
[368597727,1751224233164,-494.61,0.00018345,2]
[368597728,1751224233174,-460.0,0.00018345,2]
[368597729,1751224233183,-460.0,0.00018345,2]
[368597730,1751224233192,-460.0,0.00018345,2]
[368597731,1751224233202,-2774.43,0.00018345,2]
[368597732,1751224233212,-460.0,0.00018345,2]
[368597733,1751224233222,-460.0,0.00018345,2]
[368597734,1751224233231,-460.0,0.00018345,2]
[368597735,1751224233241,-3648.95,0.00018345,2]
[368597736,1751224233251,-460.0,0.00018345,2]
[368597737,1751224233260,-518.79,0.00018345,2]
[368597738,1751224233272,-460.0,0.00018345,2]
[368597739,1751224233282,-460.0,0.00018345,2]
[368597740,1751224233292,-460.0,0.00018345,2]
[368597741,1751224233302,-460.0,0.00018345,2]
[368597742,1751224233311,-460.0,0.00018345,2]
[368597743,1751224233321,-460.0,0.00018345,2]
[368597744,1751224233331,-2010.22,0.00018345,2]